bitfinex/quotes_BTCUSD_20250522
["timestamp","ask_amount","ask_price","bid_price","bid_amount"]
[1747925811767,0.2724919,110530.0,110520.0,0.33549228]
[1747925812169,0.3186919,110530.0,110520.0,0.33549228]
[1747925812604,0.3186919,110530.0,110520.0,0.0083973]
[1747925812821,0.39084523,110530.0,110520.0,0.0083973]
[1747925813690,0.3186919,110530.0,110520.0,0.0083973]
[1747925814156,0.3686919,110530.0,110520.0,0.0083973]
[1747925814392,0.42428317,110530.0,110520.0,0.0083973]
[1747925815951,0.44511229,110530.0,110520.0,0.0083973]
[1747925816687,0.38952102,110530.0,110520.0,0.33549228]
[1747925816909,0.38952102,110530.0,110520.0,0.0083973]
[1747925818916,0.32878017,110530.0,110520.0,0.0083973]
[1747925819191,0.32878017,110530.0,110520.0,0.60673228]
[1747925819633,0.35138017,110530.0,110520.0,0.2796373]
[1747925819839,0.37524891,110530.0,110520.0,0.2796373]
[1747925820054,0.32844891,110530.0,110520.0,0.60673228]
[1747925820540,0.32844891,110530.0,110520.0,0.0083973]
[1747925820767,0.37614891,110530.0,110520.0,0.2796373]
[1747925821000,0.32844891,110530.0,110520.0,0.2796373]
[1747925821219,0.32844891,110530.0,110520.0,0.2795373]
[1747925822804,0.32844891,110530.0,110520.0,0.31212778]
[1747925823046,0.32844891,110530.0,110520.0,0.0082973]
[1747925823753,0.37514891,110530.0,110520.0,0.2795373]
[1747925823980,0.36548976,110530.0,110520.0,0.2795373]
[1747925824190,0.38758976,110530.0,110520.0,0.2796373]
[1747925824614,0.36548976,110530.0,110520.0,0.2796373]
[1747925825274,0.38838976,110530.0,110520.0,0.0083973]
[1747925825459,0.19001069,110520.0,110510.0,0.31457228]
[1747925825667,0.27955625,110520.0,110510.0,0.31457228]
[1747925825896,0.28584452,110520.0,110510.0,0.31457228]
[1747925826331,0.19002788,110510.0,110500.0,2.36213863]
[1747925826574,0.27957344,110510.0,110500.0,3.10749361]
[1747925827019,0.27957344,110510.0,110500.0,3.37873361]
[1747925827287,0.27957344,110510.0,110500.0,3.07583863]
[1747925827507,0.19002788,110510.0,110500.0,3.42653361]
[1747925827724,0.19002788,110510.0,110500.0,6.80770661]
[1747925827915,0.19102788,110510.0,110500.0,6.81070661]
[1747925829061,0.19102788,110510.0,110500.0,2.83419863]
[1747925829277,0.19102788,110510.0,110500.0,3.43253361]
[1747925829501,0.28057344,110510.0,110500.0,2.94297361]
[1747925830611,0.28057344,110510.0,110500.0,2.67173361]
[1747925830826,0.38659673,110510.0,110500.0,2.00463863]
[1747925831499,0.392885,110510.0,110500.0,2.00463863]
[1747925831735,0.34610256,110510.0,110500.0,2.33173361]
[1747925831982,0.30140256,110510.0,110500.0,2.00463863]
[1747925832211,0.28686171,110510.0,110500.0,2.33173361]
[1747925832429,0.30140256,110510.0,110500.0,2.00463863]
[1747925832639,0.34860256,110510.0,110500.0,2.00463863]
[1747925833320,0.28686171,110510.0,110500.0,2.02883863]
[1747925833546,0.21541356,110510.0,110500.0,2.39203863]
[1747925833765,0.20636502,110510.0,110500.0,2.39203863]
[1747925834209,0.20007675,110510.0,110500.0,2.39203863]
[1747925834432,0.20007675,110510.0,110500.0,4.93873863]
[1747925834669,0.20007675,110510.0,110500.0,4.52093863]
[1747925835136,0.19102796,110510.0,110500.0,4.52093863]
[1747925835349,0.19102796,110510.0,110500.0,3.56057863]
[1747925835834,0.19102796,110510.0,110500.0,3.75967356]
[1747925836273,0.19102796,110510.0,110500.0,3.75062387]
[1747925836492,0.19102796,110510.0,110500.0,3.5696284]
[1747925836704,0.19102796,110510.0,110500.0,3.24193863]
[1747925836919,0.19102796,110510.0,110500.0,3.57507863]
[1747925837602,0.19102796,110510.0,110500.0,3.58353596]
[1747925838749,0.01004838,110510.0,110500.0,3.80072953]
[1747925838972,0.02814571,110510.0,110500.0,3.80072953]
[1747925839241,0.21817375,110510.0,110500.0,3.78263089]
[1747925839493,0.21817375,110510.0,110500.0,3.80072969]
[1747925839983,0.21817375,110510.0,110500.0,3.80977897]
[1747925840430,0.21817375,110510.0,110500.0,3.80072969]
[1747925840874,0.20912537,110510.0,110500.0,3.76738033]
[1747925841747,0.20912537,110510.0,110500.0,3.74743001]
[1747925841963,0.19102804,110510.0,110500.0,3.6658412]
[1747925842178,0.18197909,110510.0,110500.0,3.46034573]
[1747925842395,0.18197909,110510.0,110500.0,3.42294573]
[1747925842629,0.18197909,110510.0,110500.0,3.6277412]
[1747925842843,0.18197909,110510.0,110500.0,3.43769596]
[1747925843516,0.18197909,110510.0,110500.0,3.6277412]
[1747925843706,0.18197909,110510.0,110500.0,3.43769596]
[1747925843854,0.18197909,110510.0,110500.0,2.72469596]
[1747925844072,0.18197909,110510.0,110500.0,3.06609596]
[1747925844527,0.18197909,110510.0,110500.0,2.35309596]
[1747925844528,0.27152465,110510.0,110500.0,2.35309596]
[1747925844732,0.28057344,110510.0,110500.0,5.32614103]
[1747925844933,0.28057344,110510.0,110500.0,5.32604103]
[1747925845271,0.28057344,110510.0,110500.0,5.33509072]
[1747925845691,0.28057344,110510.0,110500.0,5.3260412]
[1747925845897,0.28057344,110510.0,110500.0,5.34414016]
[1747925846121,0.28057344,110510.0,110500.0,5.34414008]
[1747925846302,0.001,110510.0,110500.0,5.35318928]
[1747925846547,0.20007691,110510.0,110500.0,5.34414008]
[1747925847367,0.03719457,110510.0,110500.0,5.35318928]
[1747925847628,0.21817366,110510.0,110500.0,5.34414008]
[1747925848082,0.21817366,110510.0,110500.0,5.06385072]
[1747925848263,0.20007683,110510.0,110500.0,3.06599596]
[1747925848512,0.20007683,110510.0,110500.0,3.2560412]
[1747925848950,0.19102804,110510.0,110500.0,3.07504573]
[1747925849163,0.19102804,110510.0,110500.0,3.2560412]
[1747925849370,0.19102804,110510.0,110500.0,3.26509089]
[1747925850388,0.18197909,110510.0,110500.0,3.06599596]
[1747925850654,0.27152465,110510.0,110500.0,3.06599596]
[1747925851095,0.27152465,110510.0,110500.0,2.35299596]
[1747925851312,0.27152465,110510.0,110500.0,3.06599596]
[1747925852184,0.27152465,110510.0,110500.0,2.35299596]
[1747925852448,0.40531883,110510.0,110500.0,2.01299596]
[1747925853335,0.4116071,110510.0,110500.0,2.01299596]
[1747925853554,0.33945377,110510.0,110500.0,2.01299596]
[1747925853781,0.38945377,110510.0,110500.0,2.01299596]
[1747925854042,0.32781292,110510.0,110500.0,2.71267596]
[1747925854476,0.32152465,110510.0,110500.0,2.71267596]
[1747925854706,0.36832465,110510.0,110500.0,2.44143596]
[1747925855165,0.32152465,110510.0,110500.0,2.44143596]
[1747925856028,0.32152465,110510.0,110500.0,2.71271596]
[1747925858719,0.32152465,110510.0,110500.0,2.73260595]
[1747925859158,0.001,110510.0,110500.0,6.75582315]
[1747925859373,0.01004829,110510.0,110500.0,6.76487235]
[1747925859587,0.02564574,110530.0,110520.0,0.20810613]
[1747925859802,0.04373988,110530.0,110520.0,3.90575913]
[1747925860017,0.0288097,110530.0,110520.0,3.90575913]
[1747925860234,0.20975604,110530.0,110520.0,2.69019077]
[1747925860454,0.20975604,110530.0,110520.0,2.7082863]
[1747925860660,0.0288097,110530.0,110520.0,2.7082863]
[1747925860899,0.0288097,110530.0,110520.0,2.71833386]
[1747925861113,0.0288097,110530.0,110520.0,0.70072]
[1747925861114,0.20070922,110530.0,110520.0,0.70072]
[1747925861335,0.20070922,110530.0,110520.0,0.28232813]
[1747925861567,0.20070922,110530.0,110520.0,0.27328]
[1747925862002,0.20070922,110530.0,110520.0,0.2817349]
[1747925862674,0.20070922,110530.0,110520.0,0.32078]
[1747925862895,0.20070922,110530.0,110520.0,0.52888621]
[1747925863114,0.20070922,110530.0,110520.0,0.51983874]
[1747925863329,0.19166223,110530.0,110520.0,0.70172]
[1747925863934,0.19166223,110530.0,110520.0,0.72532]
[1747925864144,0.01976279,110530.0,110520.0,0.91533077]
[1747925864359,0.2097562,110530.0,110520.0,4.32665157]
[1747925864585,0.20070962,110530.0,110520.0,0.96548]
[1747925864797,0.20070962,110530.0,110520.0,1.15549069]
[1747925865011,0.01976288,110530.0,110520.0,1.54603394]
[1747925865411,0.20975596,110530.0,110520.0,1.56108638]
[1747925865641,0.20975596,110530.0,110520.0,1.5701341]
[1747925865864,0.03785685,110530.0,110520.0,1.59266843]
[1747925866113,0.2278505,110530.0,110520.0,0.84548843]
[1747925866342,0.20070962,110530.0,110520.0,4.419813]
[1747925866575,0.20070962,110530.0,110520.0,4.66637174]
[1747925867059,0.00166874,110530.0,110520.0,4.6844671]
[1747925867290,0.02880953,110530.0,110520.0,4.6844671]
[1747925867762,0.01976238,110530.0,110520.0,4.6844671]
[1747925867954,0.0378566,110530.0,110520.0,4.6844671]
[1747925868233,0.02880945,110530.0,110520.0,4.6844671]
[1747925868492,0.01071548,110530.0,110520.0,4.6844671]
[1747925868731,0.01071532,110530.0,110520.0,4.6844671]
[1747925869201,0.01976206,110530.0,110520.0,4.6844671]
[1747925869464,0.04690293,110530.0,110520.0,4.6844671]
[1747925869695,0.02880888,110530.0,110520.0,4.6844671]
[1747925869925,0.02880896,110530.0,110520.0,4.6844671]
[1747925870153,0.01976206,110530.0,110520.0,4.6844671]
[1747925870389,0.00166874,110530.0,110520.0,4.6844671]
[1747925870611,0.01071532,110530.0,110520.0,4.6844671]
[1747925870835,0.01976206,110530.0,110520.0,4.6844671]
[1747925871054,0.01976206,110530.0,110520.0,4.69793566]
[1747925871276,0.01071532,110530.0,110520.0,4.69793566]
[1747925871730,0.01976206,110530.0,110520.0,4.69793566]
[1747925873363,0.01071532,110530.0,110520.0,4.69793566]
[1747925873593,0.00166874,110530.0,110520.0,4.78748122]
[1747925873822,0.02913588,110550.0,110540.0,0.22956848]
[1747925874063,0.02913588,110550.0,110540.0,3.87894148]
[1747925874545,0.21909517,110550.0,110540.0,3.87894164]
[1747925874772,0.21909517,110550.0,110540.0,0.5830688]
[1747925874773,0.21005007,110550.0,110540.0,0.5830688]
[1747925874995,0.21005007,110550.0,110540.0,0.5941148]
[1747925875175,0.21020266,110550.0,110540.0,0.5941148]
[1747925876075,0.21020266,110550.0,110540.0,0.6158148]
[1747925876076,0.20115698,110550.0,110540.0,0.6158148]
[1747925876301,0.20115698,110550.0,110540.0,0.6159148]
[1747925876704,0.20115698,110550.0,110540.0,0.6179148]
[1747925876949,0.20115698,110550.0,110540.0,0.58716897]
[1747925877159,0.20115698,110550.0,110540.0,0.60526122]
[1747925877732,0.02928896,110550.0,110540.0,0.62696081]
[1747925877925,0.02928896,110550.0,110540.0,0.6269604]
[1747925878126,0.02024288,110550.0,110540.0,0.6502604]
[1747925878335,0.01119761,110550.0,110540.0,0.6502604]
[1747925878603,0.02928806,110550.0,110540.0,0.6502604]
[1747925878757,0.02024271,110550.0,110540.0,0.6502604]
[1747925878966,0.01119761,110550.0,110540.0,0.6502604]
[1747925879357,0.02024279,110550.0,110540.0,0.6502604]
[1747925879552,0.01119761,110550.0,110540.0,0.6502604]
[1747925879777,0.01119761,110550.0,110540.0,1.0002604]
[1747925879950,0.02024263,110550.0,110540.0,1.0002604]
[1747925880158,0.00215259,110550.0,110540.0,1.0002604]
[1747925880353,0.00215259,110550.0,110540.0,1.3402604]
[1747925880612,0.00215259,110550.0,110540.0,1.42980596]
[1747925883025,0.002,110570.0,110560.0,0.59593084]
[1747925883254,0.002,110570.0,110560.0,5.1470494]
[1747925883255,0.00209201,110570.0,110560.0,5.1470494]
[1747925883735,0.00209201,110570.0,110560.0,5.4970494]
[1747925884194,0.00209201,110570.0,110560.0,5.5010494]
[1747925884655,0.00309201,110570.0,110560.0,5.5060494]
[1747925886291,0.02912631,110590.0,110580.0,0.20799321]
[1747925886487,0.0472099,110590.0,110580.0,3.85779484]
[1747925886760,0.02008358,110590.0,110580.0,3.87959484]
[1747925886996,0.02008342,110590.0,110580.0,3.90359484]
[1747925887224,0.20993672,110610.0,110600.0,0.53891458]
[1747925887446,0.20993672,110610.0,110600.0,4.60992758]
[1747925887672,0.02008064,110610.0,110600.0,4.60992758]
[1747925887861,0.02912125,110610.0,110600.0,4.61896859]
[1747925888157,0.0110402,110610.0,110600.0,4.64136859]
[1747925888375,0.002,110610.0,110600.0,4.66466859]
[1747925888614,0.07108048,110610.0,110600.0,4.66466859]
[1747925888836,0.0710804,110610.0,110600.0,4.66466859]
[1747925889066,0.08916128,110610.0,110600.0,3.83184266]
[1747925889292,0.0710804,110610.0,110600.0,4.03075724]
[1747925889511,0.053,110610.0,110600.0,4.37075759]
[1747925889695,0.07008015,110610.0,110600.0,4.37075759]
[1747925889968,0.07008015,110610.0,110600.0,3.717782]
[1747925889969,0.21897642,110610.0,110600.0,3.717782]
[1747925890191,0.2028966,110610.0,110600.0,1.82648]
[1747925890407,0.2028966,110610.0,110600.0,2.13015048]
[1747925890654,0.2008966,110610.0,110600.0,2.09756]
[1747925890879,0.2008966,110610.0,110600.0,1.60546]
[1747925891103,0.2008966,110610.0,110600.0,1.79533341]
[1747925891327,0.2008966,110610.0,110600.0,1.78629182]
[1747925891542,0.2028966,110610.0,110600.0,1.78629182]
[1747925891723,0.2028966,110610.0,110600.0,1.79533332]
[1747925891926,0.19385608,110610.0,110600.0,1.79533332]
[1747925892125,0.18481547,110610.0,110600.0,1.78629182]
[1747925892522,0.18481547,110610.0,110600.0,1.08228]
[1747925892737,0.19893273,110590.0,110580.0,0.42218863]
[1747925892954,0.33347829,110590.0,110580.0,0.69322863]
[1747925893638,0.33347829,110590.0,110580.0,0.00050863]
[1747925893850,0.33347829,110590.0,110580.0,0.00150863]
[1747925894042,0.33447829,110590.0,110580.0,0.00150863]
[1747925894523,0.33347829,110590.0,110580.0,0.00150863]
[1747925894926,0.33647829,110590.0,110580.0,0.00050863]
[1747925896356,0.31527829,110590.0,110580.0,0.18137316]
[1747925896587,0.29347829,110590.0,110580.0,0.19041622]
[1747925896803,0.28443613,110590.0,110580.0,0.00050863]
[1747925897487,0.32923613,110590.0,110580.0,0.00050863]
[1747925898827,0.34377698,110590.0,110580.0,0.00050863]
[1747925899262,0.34377698,110590.0,110580.0,0.00060863]
[1747925899473,0.32923613,110590.0,110580.0,0.00060863]
[1747925899911,0.32923613,110590.0,110580.0,0.27164863]
[1747925900394,0.30693613,110590.0,110580.0,0.27164863]
[1747925900612,0.19488984,110590.0,110580.0,0.45251316]
[1747925900841,0.20393257,110590.0,110580.0,0.46155638]
[1747925901042,0.20393257,110590.0,110580.0,0.47059952]
[1747925901256,0.02308374,110590.0,110580.0,4.19310988]
[1747925901475,0.005,110590.0,110580.0,4.21470988]
[1747925901693,0.005,110590.0,110580.0,4.23620988]
[1747925902331,0.003,110590.0,110580.0,4.23620988]
[1747925902541,0.0180835,110590.0,110580.0,4.23620988]
[1747925902756,0.00904167,110590.0,110580.0,4.23620988]
[1747925902979,0.02712386,110600.0,110590.0,0.2079744]
[1747925903186,0.02712386,110600.0,110590.0,3.5633564]
[1747925903473,0.002,110610.0,110600.0,0.54795559]
[1747925903694,0.21897725,110610.0,110600.0,3.19495182]
[1747925903918,0.20993754,110610.0,110600.0,1.75369332]
[1747925904123,0.20089693,110610.0,110600.0,1.13572]
[1747925904774,0.20089693,110610.0,110600.0,1.03272]
[1747925906251,0.20089693,110610.0,110600.0,1.35182]
[1747925906456,0.20089693,110610.0,110600.0,1.30332]
[1747925906885,0.20089693,110610.0,110600.0,1.24332]
[1747925907304,0.20089693,110610.0,110600.0,1.23152]
[1747925907713,0.22259693,110610.0,110600.0,1.03272]
[1747925908369,0.22259693,110610.0,110600.0,4.59605759]
[1747925908370,0.02008064,110610.0,110600.0,4.59605759]
[1747925908608,0.02008064,110610.0,110600.0,4.61735759]
[1747925909049,0.02912125,110610.0,110600.0,4.59605759]
[1747925909273,0.02912092,110610.0,110600.0,4.61895759]
[1747925909492,0.03816153,110610.0,110600.0,4.61895759]
[1747925909712,0.02912092,110610.0,110600.0,4.61895759]
[1747925909941,0.03816153,110610.0,110600.0,4.61895759]
[1747925910614,0.04720222,110610.0,110600.0,4.59605759]
[1747925910829,0.04720222,110610.0,110600.0,4.61401917]
[1747925911032,0.22801769,110610.0,110600.0,4.5959369]
[1747925911297,0.21897798,110610.0,110600.0,2.64573758]
[1747925911468,0.21897798,110610.0,110600.0,2.65477876]
[1747925912078,0.21897798,110610.0,110600.0,2.66381986]
[1747925912457,0.02912174,110610.0,110600.0,2.66381986]
[1747925912716,0.20993721,110610.0,110600.0,2.66381986]
[1747925912923,0.02912174,110610.0,110600.0,2.66381986]
[1747925913441,0.02912174,110610.0,110600.0,2.66381937]
[1747925913667,0.21897798,110610.0,110600.0,2.66381937]
[1747925913887,0.02912174,110610.0,110600.0,2.32381937]
[1747925914100,0.20993721,110610.0,110600.0,2.32381937]
[1747925914310,0.02912174,110610.0,110600.0,2.32381937]
[1747925914960,0.02912174,110610.0,110600.0,1.85172985]
[1747925915154,0.21897798,110610.0,110600.0,1.83712578]
[1747925915461,0.21897798,110610.0,110600.0,1.1833345]
[1747925915681,0.20993754,110610.0,110600.0,1.3543345]
[1747925915904,0.20993754,110610.0,110600.0,1.31687568]
[1747925916114,0.20993754,110610.0,110600.0,1.59691669]
[1747925916345,0.02912207,110610.0,110600.0,1.59691669]
[1747925916562,0.20993754,110610.0,110600.0,1.59691669]
[1747925917111,0.20993754,110610.0,110600.0,1.61479442]
[1747925917517,0.02008088,110610.0,110600.0,1.63669442]
[1747925917728,0.002,110610.0,110600.0,1.65869442]
[1747925917935,0.0110402,110610.0,110600.0,1.65869442]
[1747925918398,0.0110402,110610.0,110600.0,2.00869442]
[1747925918871,0.03816194,110610.0,110600.0,1.96479451]
[1747925919067,0.03816194,110610.0,110600.0,1.65095152]
[1747925919477,0.03816194,110610.0,110600.0,1.65195152]
[1747925919686,0.02912116,110610.0,110600.0,1.65295152]
[1747925919889,0.02008064,110610.0,110600.0,1.67505152]
[1747925920099,0.02008056,110610.0,110600.0,1.69755152]
[1747925920298,0.02912108,110610.0,110600.0,1.69755152]
[1747925920510,0.02912108,110610.0,110600.0,1.65295152]
[1747925920718,0.03816169,110610.0,110600.0,1.65295152]
[1747925920919,0.04720238,110610.0,110600.0,1.65295152]
[1747925921129,0.22801842,110610.0,110600.0,1.65295152]
[1747925921753,0.02912149,110610.0,110600.0,2.04315152]
[1747925922175,0.03816218,110610.0,110600.0,2.04315152]
[1747925922762,0.02912149,110610.0,110600.0,2.04315152]
[1747925923624,0.002,110610.0,110600.0,2.06555152]
[1747925923849,0.002,110610.0,110600.0,2.08695152]
[1747925924041,0.002,110610.0,110600.0,2.17649708]
[1747925924841,0.002,110630.0,110620.0,0.547918]
[1747925925061,0.002,110630.0,110620.0,4.11987401]
[1747925925516,0.002,110630.0,110620.0,4.46987401]
[1747925926180,0.0021526,110630.0,110620.0,4.46987401]
[1747925926428,0.0021526,110630.0,110620.0,4.47187401]
[1747925926640,0.0021526,110630.0,110620.0,4.47387401]
[1747925926865,0.002,110650.0,110640.0,0.57108042]
[1747925927080,0.002,110650.0,110640.0,4.44845442]
[1747925927486,0.01103677,110650.0,110640.0,4.77525442]
[1747925927634,0.0200737,110650.0,110640.0,4.77525442]
[1747925928068,0.02007362,110650.0,110640.0,4.77525442]
[1747925928276,0.02007362,110650.0,110640.0,4.79765442]
[1747925928477,0.03814805,110650.0,110640.0,4.7884674]
[1747925928706,0.02911063,110650.0,110640.0,4.7884674]
[1747925929183,0.002,110670.0,110660.0,0.57134284]
[1747925929386,0.0110353,110670.0,110660.0,4.43079717]
[1747925929603,0.0110353,110670.0,110660.0,4.41633328]
[1747925929822,0.02007084,110670.0,110660.0,4.82429328]
[1747925930039,0.02007076,110670.0,110660.0,4.82429328]
[1747925930261,0.02007068,110670.0,110660.0,4.82429328]
[1747925930475,0.02925874,110670.0,110660.0,4.82429328]
[1747925930695,0.02925874,110670.0,110660.0,5.17429328]
[1747925930904,0.03829444,110670.0,110660.0,5.17429328]
[1747925931796,0.02925874,110670.0,110660.0,5.17429328]
[1747925931999,0.01118782,110670.0,110660.0,5.17529328]
[1747925932203,0.01118782,110670.0,110660.0,5.17629328]
[1747925932633,0.00215252,110670.0,110660.0,5.28793884]
[1747925932853,0.00215252,110670.0,110660.0,5.31113884]
[1747925934855,0.002,110690.0,110680.0,0.56207065]
[1747925935066,0.0110335,110690.0,110680.0,4.04035913]
[1747925935321,0.0200648,110710.0,110700.0,0.1987349]
[1747925935558,0.02021663,110710.0,110700.0,4.43393476]
[1747925935765,0.03828086,110710.0,110700.0,4.43393476]
[1747925935979,0.22796537,110710.0,110700.0,4.42490191]
[1747925936190,0.03828135,110710.0,110700.0,4.45121908]
[1747925936406,0.04731387,110710.0,110700.0,4.80121908]
[1747925936630,0.02924891,110710.0,110700.0,4.82261354]
[1747925936838,0.04128135,110710.0,110700.0,4.82261354]
[1747925937047,0.05031387,110710.0,110700.0,4.82261354]
[1747925937228,0.05031387,110710.0,110700.0,4.83635269]
[1747925937440,0.23096602,110710.0,110700.0,4.82731984]
[1747925937730,0.05031452,110710.0,110700.0,4.83635277]
[1747925937947,0.22493448,110710.0,110700.0,4.13952683]
[1747925938179,0.22493448,110710.0,110700.0,4.80592538]
[1747925938616,0.04428233,110710.0,110700.0,4.83635269]
[1747925938742,0.04428233,110710.0,110700.0,4.81828683]
[1747925938943,0.22493448,110710.0,110700.0,3.94079193]
[1747925939184,0.24373724,110710.0,110700.0,3.56939747]
[1747925939401,0.24373724,110710.0,110700.0,4.24803747]
[1747925939817,0.24373724,110710.0,110700.0,4.42870594]
[1747925940033,0.02621729,110710.0,110700.0,4.45580522]
[1747925940245,0.04428192,110710.0,110700.0,4.45580522]
[1747925940467,0.00815249,110710.0,110700.0,4.58925078]
[1747925940675,0.00815249,110710.0,110700.0,4.61064524]
[1747925941568,0.0110304,110730.0,110720.0,0.20773022]
[1747925941783,0.18270022,110750.0,110740.0,0.34903016]
[1747925941990,0.18285268,110750.0,110740.0,4.23836846]
[1747925942209,0.18285268,110750.0,110740.0,4.26545146]
[1747925942433,0.18285268,110750.0,110740.0,4.43369037]
[1747925942641,0.18285268,110750.0,110740.0,4.4641149]
[1747925942855,0.18485268,110750.0,110740.0,4.45508483]
[1747925943085,0.18485268,110750.0,110740.0,4.27448162]
[1747925943340,0.18485268,110750.0,110740.0,4.82314481]
[1747925943587,0.20291079,110750.0,110740.0,4.81078018]
[1747925943837,0.20291079,110750.0,110740.0,4.81980976]
[1747925943838,0.00415246,110750.0,110740.0,4.81980976]
[1747925944098,0.00515246,110750.0,110740.0,4.84370976]
[1747925944346,0.00415246,110750.0,110740.0,4.95535532]
[1747925944586,0.01102714,110770.0,110760.0,0.20765519]
[1747925944837,0.04764478,110770.0,110760.0,3.67678919]
[1747925945085,0.0386178,110770.0,110760.0,3.67678928]
[1747925945343,0.00630524,110770.0,110760.0,4.03581723]
[1747925945579,0.0005081,110770.0,110760.0,4.03581723]
[1747925946062,0.00953524,110770.0,110760.0,4.03581723]
[1747925946274,0.01153524,110770.0,110760.0,4.03581723]
[1747925946521,0.03610579,110780.0,110770.0,0.54763645]
[1747925946745,0.21664453,110780.0,110770.0,4.53321061]
[1747925947183,0.01805273,110780.0,110770.0,4.89223775]
[1747925947399,0.01805273,110780.0,110770.0,4.91553775]
[1747925947806,0.02707938,110780.0,110770.0,4.91653775]
[1747925948219,0.01805273,110780.0,110770.0,4.91653775]
[1747925948513,0.01805273,110780.0,110770.0,4.91753775]
[1747925948723,0.01102551,110790.0,110780.0,0.54761796]
[1747925948943,0.00215234,110790.0,110780.0,4.11524384]
[1747925949210,0.01902461,110800.0,110790.0,0.54759896]
[1747925949424,0.01,110800.0,110790.0,3.83551852]
[1747925949636,0.01,110800.0,110790.0,3.85302917]
[1747925949842,0.01,110800.0,110790.0,3.87632917]
[1747925950050,0.01902453,110800.0,110790.0,3.87632917]
[1747925950271,0.002,110810.0,110800.0,0.54758023]
[1747925950506,0.002,110810.0,110800.0,4.55017979]
[1747925951157,0.002,110810.0,110800.0,4.57724279]
[1747925951158,0.0110238,110810.0,110800.0,4.57724279]
[1747925951367,0.002,110810.0,110800.0,4.57724279]
[1747925951548,0.002,110810.0,110800.0,4.92924279]
[1747925952347,0.20050163,110830.0,110820.0,0.5385197]
[1747925952579,0.20065394,110830.0,110820.0,4.3972137]
[1747925952747,0.19163152,110830.0,110820.0,4.198694]
[1747925953190,0.19163152,110830.0,110820.0,4.548694]
[1747925953361,0.19163152,110830.0,110820.0,4.278054]
[1747925953561,0.19263152,110830.0,110820.0,4.946814]
[1747925954233,0.23833152,110830.0,110820.0,4.596734]
[1747925954431,0.23833152,110830.0,110820.0,2.52086]
[1747925954958,0.23833152,110830.0,110820.0,2.28416]
[1747925955163,0.23833152,110830.0,110820.0,0.39068]
[1747925955164,0.32787708,110830.0,110820.0,0.39068]
[1747925955374,0.34241793,110830.0,110820.0,0.39068]
[1747925956211,0.34241793,110830.0,110820.0,0.001]
[1747925956421,0.24433745,110810.0,110800.0,0.6676]
[1747925956646,0.33388301,110810.0,110800.0,0.6676]
[1747925957255,0.18953051,110800.0,110790.0,0.38448785]
[1747925957449,0.21283051,110800.0,110790.0,4.25042185]
[1747925957809,0.21283051,110800.0,110790.0,3.58286185]
[1747925958045,0.21283051,110800.0,110790.0,4.25042185]
[1747925958466,0.21483051,110800.0,110790.0,3.58286185]
[1747925958684,0.23703051,110800.0,110790.0,2.27644785]
[1747925958909,0.23803051,110800.0,110790.0,2.27644785]
[1747925959336,0.02105012,110800.0,110790.0,2.4750213]
[1747925959568,0.01202453,110800.0,110790.0,2.49307248]
[1747925959793,0.02104923,110800.0,110790.0,2.49307248]
[1747925960004,0.03007417,110800.0,110790.0,2.49307248]
[1747925960425,0.02104923,110800.0,110790.0,2.49307248]
[1747925960640,0.0390996,110800.0,110790.0,2.48404681]
[1747925961083,0.04812478,110800.0,110790.0,2.48404681]
[1747925961301,0.22863019,110800.0,110790.0,2.48404681]
[1747925961541,0.22863028,110800.0,110790.0,2.83404681]
[1747925961768,0.22863028,110800.0,110790.0,2.83404714]
[1747925962002,0.04812478,110800.0,110790.0,2.84307273]
[1747925962449,0.04812478,110800.0,110790.0,2.85209824]
[1747925963119,0.003,110800.0,110790.0,2.85209824]
[1747925963353,0.19495359,110830.0,110820.0,0.1894963]
[1747925963578,0.0180467,110820.0,110810.0,0.21657085]
[1747925963814,0.21656616,110820.0,110810.0,4.07348113]
[1747925964035,0.20754317,110820.0,110810.0,4.09152217]
[1747925964252,0.19851994,110820.0,110810.0,3.892999]
[1747925964525,0.18047283,110820.0,110810.0,4.42251241]
[1747925964741,0.18047283,110820.0,110810.0,4.77251241]
[1747925965381,0.19851986,110820.0,110810.0,4.78153654]
[1747925965668,0.02907026,110820.0,110810.0,4.78153654]
[1747925965821,0.01102299,110820.0,110810.0,4.79056042]
[1747925966026,0.002,110820.0,110810.0,4.88010598]
[1747925966236,0.002,110820.0,110810.0,4.90210598]
[1747925966748,0.01302299,110820.0,110810.0,4.88010598]
[1747925967009,0.02204606,110820.0,110810.0,4.88010598]
[1747925967345,0.02906929,110820.0,110810.0,4.88010598]
[1747925967660,0.20051889,110820.0,110810.0,4.77651241]
[1747925967869,0.02706977,110820.0,110810.0,4.79456058]
[1747925968077,0.18260886,110830.0,110820.0,0.53851953]
[1747925968282,0.20065426,110830.0,110820.0,3.74591668]
[1747925968515,0.0111744,110830.0,110820.0,3.75493975]
[1747925968770,0.02019657,110830.0,110820.0,3.75493975]
[1747925968999,0.00215231,110830.0,110820.0,4.10493975]
[1747925969227,0.00215231,110830.0,110820.0,4.12793975]
[1747925969458,0.00215231,110830.0,110820.0,4.10593975]
[1747925969916,0.20967611,110830.0,110820.0,4.09691668]
[1747925970148,0.20065426,110830.0,110820.0,1.67374]
[1747925970369,0.24655426,110830.0,110820.0,0.7971]
[1747925970592,0.24655426,110830.0,110820.0,1.38504]
[1747925970810,0.24655426,110830.0,110820.0,0.90816]
[1747925971033,0.24655426,110830.0,110820.0,1.15574]
[1747925971248,0.24655426,110830.0,110820.0,1.3452363]
[1747925971454,0.22415426,110830.0,110820.0,1.34523639]
[1747925971659,0.2151316,110830.0,110820.0,1.15574]
[1747925971877,0.32657716,110830.0,110820.0,0.002]
[1747925972132,0.32657716,110830.0,110820.0,0.66936]
[1747925972353,0.34211801,110830.0,110820.0,0.002]
[1747925972562,0.34841163,110830.0,110820.0,0.002]
[1747925972898,0.35681216,110830.0,110820.0,0.002]
[1747925973126,0.35681216,110830.0,110820.0,0.001]
[1747925973531,0.35781216,110830.0,110820.0,0.001]
[1747925973939,0.1894963,110820.0,110810.0,0.27044]
[1747925974129,0.32514186,110820.0,110810.0,0.66088]
[1747925974325,0.32514186,110820.0,110810.0,0.84136912]
[1747925974326,0.33416525,110820.0,110810.0,0.84136912]
[1747925974527,0.03547054,110820.0,110810.0,4.06681591]
[1747925974792,0.22496701,110820.0,110810.0,4.07583995]
[1747925975002,0.02644642,110820.0,110810.0,4.42486383]
[1747925975344,0.03646965,110820.0,110810.0,4.42486383]
[1747925975519,0.04549312,110820.0,110810.0,4.42486383]
[1747925975736,0.04549312,110820.0,110810.0,3.44516595]
[1747925975737,0.23498959,110820.0,110810.0,3.44516595]
[1747925975939,0.22596669,110820.0,110810.0,3.79516587]
[1747925976171,0.02744675,110820.0,110810.0,3.80418975]
[1747925976378,0.02806969,110820.0,110810.0,3.80418975]
[1747925976837,0.22658972,110820.0,110810.0,3.79516587]
[1747925977059,0.26376673,110820.0,110810.0,0.34]
[1747925977265,0.33526559,110820.0,110810.0,1.00092]
[1747925977475,0.19952003,110820.0,110810.0,1.19945778]